[Event "Schack-SM 2024: Mastarklassen-elit"]
[Site "Fortnox Arena, Hejaregatan 5, Vaxjo, Sweden"]
[Date "2024.07.04"]
[Round "6.5"]
[White "Carlsson, Ludvig"]
[Black "Sorensen, Hampus"]
[Result "1-0"]
[TimeControl "90 minutes for 40 moves + 30 minutes for the rest of the game + 30 seconds per move from move one."]
[WhiteTitle "IM"]
[BlackTitle "IM"]
[WhiteElo "2335"]
[BlackElo "2404"]

1. e4 {[%clk 01:30:58]} {[%emt 00:00:02]} e5 {[%clk 01:30:39]} {[%emt
00:00:17]} 2. Nf3 {[%clk 01:31:23]} {[%emt 00:00:09]} Nc6 {[%clk 01:30:49]}
{[%emt 00:00:20]} 3. Nc3 {[%clk 01:31:44]} {[%emt 00:00:09]} Nf6 {[%clk
01:30:59]} {[%emt 00:00:21]} 4. d4 {[%clk 01:32:06]} {[%emt 00:00:08]} Bb4
{[%clk 01:21:58]} {[%emt 00:09:31]} 5. Nxe5 {[%clk 01:32:27]} {[%emt 00:00:07]}
Bxc3+ {[%clk 01:19:26]} {[%emt 00:03:04]} 6. bxc3 {[%clk 01:32:42]} {[%emt
00:00:13]} Qe7 {[%clk 01:19:40]} {[%emt 00:00:17]} 7. f3 {[%clk 01:32:11]}
{[%emt 00:01:00]} Nxe5 {[%clk 01:19:10]} {[%emt 00:00:59]} 8. dxe5 {[%clk
01:32:35]} {[%emt 00:00:06]} Qxe5 {[%clk 01:19:34]} {[%emt 00:00:08]} 9. Qd4
{[%clk 01:33:00]} {[%emt 00:00:04]} d6 {[%clk 01:19:49]} {[%emt 00:00:16]} 10.
Qxe5+ {[%clk 01:28:08]} {[%emt 00:05:21]} dxe5 {[%clk 01:20:06]} {[%emt
00:00:13]} 11. a4 {[%clk 01:27:28]} {[%emt 00:01:10]} a5 {[%clk 01:13:46]}
{[%emt 00:06:49]} 12. Bc4 {[%clk 01:24:05]} {[%emt 00:03:53]} b6 {[%clk
01:08:51]} {[%emt 00:05:28]} 13. Ke2 {[%clk 01:24:03]} {[%emt 00:00:30]} Ba6
{[%clk 00:58:24]} {[%emt 00:10:58]} 14. Bxa6 {[%clk 01:22:02]} {[%emt
00:02:30]} Rxa6 {[%clk 00:58:53]} {[%emt 00:00:03]} 15. Rd1 {[%clk 01:22:22]}
{[%emt 00:00:09]} Ke7 {[%clk 00:53:58]} {[%emt 00:05:26]} 16. c4 {[%clk
01:10:16]} {[%emt 00:12:35]} Rd8 {[%clk 00:47:38]} {[%emt 00:06:51]} 17. Rxd8
{[%clk 01:04:02]} {[%emt 00:06:43]} Kxd8 {[%clk 00:48:03]} {[%emt 00:00:04]} 18.
Bg5 {[%clk 01:04:25]} {[%emt 00:00:07]} Ke8 {[%clk 00:43:34]} {[%emt 00:04:59]}
19. Bxf6 {[%clk 01:00:36]} {[%emt 00:04:19]} gxf6 {[%clk 00:43:50]} {[%emt
00:00:14]} 20. Rd1 {[%clk 00:59:46]} {[%emt 00:01:20]} Ke7 {[%clk 00:41:24]}
{[%emt 00:02:57]} 21. Rb1 {[%clk 00:46:25]} {[%emt 00:13:50]} Kd6 {[%clk
00:32:27]} {[%emt 00:09:27]} 22. Rb5 {[%clk 00:45:52]} {[%emt 00:01:04]} Ra8
{[%clk 00:31:15]} {[%emt 00:01:42]} 23. c5+ {[%clk 00:39:36]} {[%emt 00:06:45]}
Kc6 {[%clk 00:22:51]} {[%emt 00:08:55]} 24. cxb6 {[%clk 00:39:52]} {[%emt
00:00:14]} cxb6 {[%clk 00:23:20]} {[%emt 00:00:01]} 25. Rd5 {[%clk 00:40:11]}
{[%emt 00:00:09]} Rg8 {[%clk 00:09:49]} {[%emt 00:14:01]} 26. g3 {[%clk
00:40:28]} {[%emt 00:00:12]} Re8 {[%clk 00:06:49]} {[%emt 00:03:33]} 27. Ke3
{[%clk 00:35:28]} {[%emt 00:05:28]} Rc8 {[%clk 00:05:09]} {[%emt 00:02:11]} 28.
f4 {[%clk 00:28:44]} {[%emt 00:07:14]} Re8 {[%clk 00:03:56]} {[%emt 00:01:42]}
29. c4 {[%clk 00:28:59]} {[%emt 00:00:16]} Re7 {[%clk 00:01:54]} {[%emt
00:02:32]} 30. h4 {[%clk 00:29:18]} {[%emt 00:00:11]} Re8 {[%clk 00:00:43]}
{[%emt 00:01:41]} 31. Kf3 {[%clk 00:29:40]} {[%emt 00:00:07]} Kc7 {[%clk
00:00:39]} {[%emt 00:00:36]} 32. c5 {[%clk 00:28:33]} {[%emt 00:01:36]} Re6
{[%clk 00:00:41]} {[%emt 00:00:29]} 33. cxb6+ {[%clk 00:24:49]} {[%emt
00:04:13]} Kxb6 {[%clk 00:00:56]} {[%emt 00:00:14]} 34. Rd7 {[%clk 00:25:14]}
{[%emt 00:00:05]} f5 {[%clk 00:00:32]} {[%emt 00:00:55]} 35. exf5 {[%clk
00:25:15]} {[%emt 00:00:28]} Rf6 {[%clk 00:01:01]} {[%emt 00:00:02]} 36. g4
{[%clk 00:24:22]} {[%emt 00:01:22]} exf4 {[%clk 00:01:28]} {[%emt 00:00:03]} 37.
Kxf4 {[%clk 00:24:42]} {[%emt 00:00:10]} Kc6 {[%clk 00:01:49]} {[%emt
00:00:11]} 38. Kg5 {[%clk 00:17:10]} {[%emt 00:08:00]} Rxf5+ {[%clk 00:02:09]}
{[%emt 00:00:09]} 39. gxf5 {[%clk 00:17:24]} {[%emt 00:00:17]} Kxd7 {[%clk
00:02:37]} {[%emt 00:00:03]} 40. Kf6 {[%clk 00:17:42]} {[%emt 00:00:12]} Ke8
{[%clk 00:03:00]} {[%emt 00:00:06]} 41. Kg7 {[%clk 00:16:52]} {[%emt 00:01:19]}
Ke7 {[%clk 00:28:45]} {[%emt 00:04:46]} 42. h5 {[%clk 00:47:13]} {[%emt
00:00:09]} f6 {[%clk 00:26:12]} {[%emt 00:03:02]} 43. Kxh7 {[%clk 00:47:36]}
{[%emt 00:00:07]} Kf8 {[%clk 00:26:15]} {[%emt 00:00:27]} 44. Kg6 {[%clk
00:48:01]} {[%emt 00:00:06]} 1-0

[Event "Schack-SM 2024: Mastarklassen-elit"]
[Site "Fortnox Arena, Hejaregatan 5, Vaxjo, Sweden"]
[Date "2024.07.04"]
[Round "6.1"]
[White "Thorn, Eric"]
[Black "Lundin, Jan"]
[Result "1/2-1/2"]
[TimeControl "90 minutes for 40 moves + 30 minutes for the rest of the game + 30 seconds per move from move one."]
[WhiteTitle "FM"]
[BlackTitle "FM"]
[WhiteElo "2359"]
[BlackElo "2246"]

1. d4 {[%clk 01:30:54]} {[%emt 00:00:05]} f5 {[%clk 01:30:38]} {[%emt
00:00:23]} 2. Nf3 {[%clk 01:29:21]} {[%emt 00:02:03]} Nf6 {[%clk 01:30:50]}
{[%emt 00:00:18]} 3. Bg5 {[%clk 01:29:44]} {[%emt 00:00:08]} e6 {[%clk
01:29:33]} {[%emt 00:01:45]} 4. Nbd2 {[%clk 01:29:21]} {[%emt 00:00:54]} d5
{[%clk 01:29:15]} {[%emt 00:00:47]} 5. e3 {[%clk 01:28:06]} {[%emt 00:01:46]}
Be7 {[%clk 01:26:13]} {[%emt 00:03:32]} 6. Ne5 {[%clk 01:22:13]} {[%emt
00:06:23]} O-O {[%clk 01:24:30]} {[%emt 00:02:12]} 7. Be2 {[%clk 01:17:32]}
{[%emt 00:05:12]} Nbd7 {[%clk 01:23:13]} {[%emt 00:01:47]} 8. Nd3 {[%clk
01:11:33]} {[%emt 00:06:29]} Bd6 {[%clk 01:11:28]} {[%emt 00:12:15]} 9. c4
{[%clk 01:09:45]} {[%emt 00:02:17]} c6 {[%clk 01:08:46]} {[%emt 00:03:14]} 10.
O-O {[%clk 01:05:44]} {[%emt 00:04:31]} b6 {[%clk 01:05:52]} {[%emt 00:03:24]}
11. b4 {[%clk 00:54:13]} {[%emt 00:12:01]} Qe8 {[%clk 00:52:26]} {[%emt
00:13:56]} 12. Bf4 {[%clk 00:52:40]} {[%emt 00:02:02]} Bb8 {[%clk 00:49:32]}
{[%emt 00:03:24]} 13. Rc1 {[%clk 00:44:47]} {[%emt 00:08:24]} Bb7 {[%clk
00:46:02]} {[%emt 00:03:59]} 14. Nf3 {[%clk 00:39:47]} {[%emt 00:05:30]} dxc4
{[%clk 00:38:53]} {[%emt 00:07:39]} 15. Rxc4 {[%clk 00:39:05]} {[%emt
00:01:13]} Bxf4 {[%clk 00:38:59]} {[%emt 00:00:22]} 16. Nxf4 {[%clk 00:37:55]}
{[%emt 00:01:40]} Nd5 {[%clk 00:35:34]} {[%emt 00:03:56]} 17. Qb3 {[%clk
00:33:48]} {[%emt 00:04:38]} a5 {[%clk 00:30:14]} {[%emt 00:05:50]} 18. bxa5
{[%clk 00:31:28]} {[%emt 00:02:50]} Rxa5 {[%clk 00:30:11]} {[%emt 00:00:34]} 19.
Nxd5 {[%clk 00:28:15]} {[%emt 00:03:42]} exd5 {[%clk 00:26:28]} {[%emt
00:04:13]} 20. Rc2 {[%clk 00:25:50]} {[%emt 00:02:55]} Qe7 {[%clk 00:22:37]}
{[%emt 00:04:22]} 21. g3 {[%clk 00:20:41]} {[%emt 00:05:39]} Ra3 {[%clk
00:20:45]} {[%emt 00:02:22]} 22. Qb1 {[%clk 00:18:52]} {[%emt 00:02:18]} Rfa8
{[%clk 00:18:19]} {[%emt 00:02:56]} 23. Rfc1 {[%clk 00:16:32]} {[%emt
00:02:49]} g6 {[%clk 00:17:30]} {[%emt 00:01:20]} 24. Rb2 {[%clk 00:14:30]}
{[%emt 00:02:31]} Qe4 {[%clk 00:16:18]} {[%emt 00:01:42]} 25. Rcc2 {[%clk
00:13:51]} {[%emt 00:01:10]} R8a4 {[%clk 00:11:50]} {[%emt 00:04:57]} 26. Qc1
{[%clk 00:12:14]} {[%emt 00:02:06]} Qe6 {[%clk 00:10:37]} {[%emt 00:01:44]} 27.
Ng5 {[%clk 00:09:34]} {[%emt 00:03:09]} Qd6 {[%clk 00:10:37]} {[%emt 00:00:31]}
28. Bf1 {[%clk 00:08:07]} {[%emt 00:01:56]} Ra7 {[%clk 00:10:03]} {[%emt
00:01:04]} 29. Bg2 {[%clk 00:07:21]} {[%emt 00:01:16]} Qe7 {[%clk 00:10:02]}
{[%emt 00:00:31]} 30. h4 {[%clk 00:06:59]} {[%emt 00:00:52]} Qf6 {[%clk
00:08:52]} {[%emt 00:01:40]} 31. Nh3 {[%clk 00:06:06]} {[%emt 00:01:23]} b5
{[%clk 00:07:55]} {[%emt 00:01:27]} 32. Nf4 {[%clk 00:05:29]} {[%emt 00:01:07]}
Nb6 {[%clk 00:08:01]} {[%emt 00:00:25]} 33. Bf1 {[%clk 00:05:48]} {[%emt
00:00:10]} Qd6 {[%clk 00:07:00]} {[%emt 00:01:31]} 34. Qb1 {[%clk 00:03:40]}
{[%emt 00:02:37]} Nc4 {[%clk 00:04:17]} {[%emt 00:03:13]} 35. Rb3 {[%clk
00:01:53]} {[%emt 00:02:18]} R3a4 {[%clk 00:03:46]} {[%emt 00:01:01]} 36. Re2
{[%clk 00:00:54]} {[%emt 00:01:28]} Bc8 {[%clk 00:02:25]} {[%emt 00:01:52]} 37.
Nd3 {[%clk 00:00:42]} {[%emt 00:00:41]} Qb8 {[%clk 00:01:51]} {[%emt 00:01:06]}
38. Nc5 {[%clk 00:00:53]} {[%emt 00:00:19]} R4a5 {[%clk 00:02:08]} {[%emt
00:00:12]} 39. a4 {[%clk 00:00:37]} {[%emt 00:00:46]} Qa8 {[%clk 00:01:11]}
{[%emt 00:01:26]} 40. axb5 {[%clk 00:00:45]} {[%emt 00:00:22]} Ra1 {[%clk
00:00:47]} {[%emt 00:00:55]} 41. Qd3 {[%clk 00:29:13]} {[%emt 00:02:01]} cxb5
{[%clk 00:23:56]} {[%emt 00:07:22]} 42. Rxb5 {[%clk 00:24:57]} {[%emt
00:04:46]} f4 {[%clk 00:16:10]} {[%emt 00:08:16]} 43. Rb1 {[%clk 00:16:50]}
{[%emt 00:08:35]} Rxb1 {[%clk 00:04:40]} {[%emt 00:12:02]} 44. Qxb1 {[%clk
00:17:10]} {[%emt 00:00:11]} Ra1 {[%clk 00:05:05]} {[%emt 00:00:04]} 45. Qb4
{[%clk 00:11:21]} {[%emt 00:06:18]} Bh3 {[%clk 00:03:29]} {[%emt 00:02:08]} 46.
Re1 {[%clk 00:11:47]} {[%emt 00:00:03]} Bxf1 {[%clk 00:03:12]} {[%emt
00:00:47]} 47. Rxa1 {[%clk 00:05:37]} {[%emt 00:06:39]} Qxa1 {[%clk 00:03:34]}
{[%emt 00:00:09]} 48. Qb8+ {[%clk 00:06:06]} {[%emt 00:00:02]} Kg7 {[%clk
00:02:18]} {[%emt 00:01:45]} 49. Qc7+ {[%clk 00:06:30]} {[%emt 00:00:05]} Kg8
{[%clk 00:01:25]} {[%emt 00:01:25]} 50. Qd8+ {[%clk 00:06:02]} {[%emt
00:00:59]} Kf7 {[%clk 00:01:38]} {[%emt 00:00:17]} 51. Qd7+ {[%clk 00:03:41]}
{[%emt 00:02:50]} Kf6 {[%clk 00:01:47]} {[%emt 00:00:20]} 52. Qd8+ {[%clk
00:03:59]} {[%emt 00:00:12]} Kf7 {[%clk 00:01:31]} {[%emt 00:00:46]} 53. Qxd5+
{[%clk 00:03:43]} {[%emt 00:00:47]} Kg7 {[%clk 00:01:49]} {[%emt 00:00:12]} 54.
Qd7+ {[%clk 00:01:24]} {[%emt 00:02:49]} Kh6 {[%clk 00:00:47]} {[%emt
00:01:31]} 55. Qc7 {[%clk 00:01:24]} {[%emt 00:00:30]} Bh3+ {[%clk 00:00:40]}
{[%emt 00:00:38]} 56. Kh2 {[%clk 00:01:49]} {[%emt 00:00:05]} Qf1 {[%clk
00:00:38]} {[%emt 00:00:32]} 57. Qxf4+ {[%clk 00:01:48]} {[%emt 00:00:31]} Kg7
{[%clk 00:01:02]} {[%emt 00:00:06]} 58. Qc7+ {[%clk 00:01:44]} {[%emt
00:00:34]} Kh6 {[%clk 00:01:18]} {[%emt 00:00:13]} 59. Qf4+ {[%clk 00:01:59]}
{[%emt 00:00:15]} Kg7 {[%clk 00:01:43]} {[%emt 00:00:04]} 60. Qc7+ {[%clk
00:01:50]} {[%emt 00:00:39]} Kh6 {[%clk 00:02:05]} {[%emt 00:00:07]} 61. Qf4+
{[%clk 00:01:55]} {[%emt 00:00:25]} 1/2-1/2

[Event "Schack-SM 2024: Mastarklassen-elit"]
[Site "Fortnox Arena, Hejaregatan 5, Vaxjo, Sweden"]
[Date "2024.07.04"]
[Round "6.2"]
[White "Arman, Deniz"]
[Black "Wiedenkeller, Michael"]
[Result "0-1"]
[TimeControl "90 minutes for 40 moves + 30 minutes for the rest of the game + 30 seconds per move from move one."]
[WhiteTitle "FM"]
[BlackTitle "IM"]
[WhiteElo "2343"]
[BlackElo "2417"]

1. e4 {[%clk 01:23:01]} {[%emt 00:07:59]} e5 {[%clk 01:30:38]} {[%emt
00:00:22]} 2. Nf3 {[%clk 01:22:44]} {[%emt 00:00:47]} Nc6 {[%clk 01:30:47]}
{[%emt 00:00:21]} 3. Bb5 {[%clk 01:22:06]} {[%emt 00:01:08]} Nf6 {[%clk
01:30:59]} {[%emt 00:00:18]} 4. d3 {[%clk 01:17:39]} {[%emt 00:04:57]} Bc5
{[%clk 01:31:12]} {[%emt 00:00:16]} 5. Bxc6 {[%clk 01:17:21]} {[%emt 00:00:49]}
dxc6 {[%clk 01:30:25]} {[%emt 00:01:17]} 6. O-O {[%clk 01:17:18]} {[%emt
00:00:32]} Nd7 {[%clk 01:24:31]} {[%emt 00:06:24]} 7. c3 {[%clk 01:17:13]}
{[%emt 00:00:35]} Bd6 {[%clk 01:18:20]} {[%emt 00:06:41]} 8. d4 {[%clk
01:14:04]} {[%emt 00:03:39]} O-O {[%clk 01:14:47]} {[%emt 00:04:04]} 9. Bg5
{[%clk 01:12:26]} {[%emt 00:02:08]} Be7 {[%clk 01:02:40]} {[%emt 00:12:37]} 10.
Bxe7 {[%clk 00:59:18]} {[%emt 00:13:38]} Qxe7 {[%clk 01:02:59]} {[%emt
00:00:11]} 11. Nxe5 {[%clk 00:54:58]} {[%emt 00:04:50]} Nxe5 {[%clk 01:03:03]}
{[%emt 00:00:27]} 12. dxe5 {[%clk 00:54:38]} {[%emt 00:00:03]} Qxe5 {[%clk
00:55:43]} {[%emt 00:09:06]} 13. Nd2 {[%clk 00:46:22]} {[%emt 00:09:12]} Be6
{[%clk 00:50:46]} {[%emt 00:05:28]} 14. Qc2 {[%clk 00:29:43]} {[%emt 00:17:09]}
Rad8 {[%clk 00:41:47]} {[%emt 00:09:28]} 15. Nf3 {[%clk 00:24:33]} {[%emt
00:05:40]} Qf4 {[%clk 00:38:05]} {[%emt 00:04:12]} 16. Nd4 {[%clk 00:22:20]}
{[%emt 00:02:43]} Rfe8 {[%clk 00:19:37]} {[%emt 00:18:59]} 17. Rad1 {[%clk
00:09:10]} {[%emt 00:13:42]} Bc4 {[%clk 00:16:38]} {[%emt 00:03:27]} 18. Rfe1
{[%clk 00:09:34]} {[%emt 00:00:06]} c5 {[%clk 00:14:15]} {[%emt 00:02:54]} 19.
Nf5 {[%clk 00:06:22]} {[%emt 00:03:43]} g6 {[%clk 00:10:58]} {[%emt 00:03:45]}
20. Rxd8 {[%clk 00:01:41]} {[%emt 00:05:11]} Rxd8 {[%clk 00:11:12]} {[%emt
00:00:16]} 21. Ne3 {[%clk 00:01:04]} {[%emt 00:01:06]} Bd3 {[%clk 00:06:30]}
{[%emt 00:05:12]} 22. Qd1 {[%clk 00:01:15]} {[%emt 00:00:19]} Qxe4 {[%clk
00:05:47]} {[%emt 00:01:13]} 23. Ng4 {[%clk 00:01:11]} {[%emt 00:00:35]} Qf4
{[%clk 00:05:36]} {[%emt 00:00:40]} 24. Ne5 {[%clk 00:00:37]} {[%emt 00:01:05]}
c4 {[%clk 00:05:20]} {[%emt 00:00:46]} 25. g3 {[%clk 00:00:36]} {[%emt
00:00:31]} Qf6 {[%clk 00:05:13]} {[%emt 00:00:37]} 26. Ng4 {[%clk 00:00:41]}
{[%emt 00:00:25]} Qd6 {[%clk 00:05:04]} {[%emt 00:00:39]} 27. Qa4 {[%clk
00:00:40]} {[%emt 00:00:32]} h5 {[%clk 00:03:14]} {[%emt 00:02:19]} 28. Ne3
{[%clk 00:00:56]} {[%emt 00:00:15]} Qc5 {[%clk 00:02:16]} {[%emt 00:01:27]} 29.
Ng2 {[%clk 00:00:44]} {[%emt 00:00:41]} c6 {[%clk 00:02:11]} {[%emt 00:00:36]}
30. Qd1 {[%clk 00:00:39]} {[%emt 00:00:35]} Kg7 {[%clk 00:01:06]} {[%emt
00:01:34]} 31. Nf4 {[%clk 00:00:58]} {[%emt 00:00:11]} Qd6 {[%clk 00:00:54]}
{[%emt 00:00:43]} 32. Qa4 {[%clk 00:01:09]} {[%emt 00:00:17]} Qc5 {[%clk
00:01:00]} {[%emt 00:00:26]} 33. Qd1 {[%clk 00:01:18]} {[%emt 00:00:21]} Rd7
{[%clk 00:00:49]} {[%emt 00:00:42]} 34. Re6 {[%clk 00:00:37]} {[%emt 00:01:10]}
Qf5 {[%clk 00:01:02]} {[%emt 00:00:16]} 35. Re1 {[%clk 00:00:41]} {[%emt
00:00:27]} Qg4 {[%clk 00:00:45]} {[%emt 00:00:47]} 36. Qc1 {[%clk 00:00:46]}
{[%emt 00:00:25]} Bf5 {[%clk 00:00:47]} {[%emt 00:00:29]} 37. Kg2 {[%clk
00:00:58]} {[%emt 00:00:18]} Bd3 {[%clk 00:00:54]} {[%emt 00:00:23]} 38. Re5
{[%clk 00:01:06]} {[%emt 00:00:21]} Rd6 {[%clk 00:01:07]} {[%emt 00:00:16]} 39.
Nxh5+ {[%clk 00:01:16]} {[%emt 00:00:20]} Kh7 {[%clk 00:01:09]} {[%emt
00:00:27]} 40. f3 {[%clk 00:00:46]} {[%emt 00:01:01]} Qd7 {[%clk 00:01:02]}
{[%emt 00:00:39]} 41. Nf4 {[%clk 00:18:38]} {[%emt 00:12:36]} Bf5 {[%clk
00:30:08]} {[%emt 00:01:24]} 42. g4 {[%clk 00:08:09]} {[%emt 00:10:59]} Bxg4
{[%clk 00:24:54]} {[%emt 00:05:44]} 43. Qe1 {[%clk 00:08:09]} {[%emt 00:00:29]}
Rf6 {[%clk 00:12:06]} {[%emt 00:13:18]} 44. Qh4+ {[%clk 00:05:17]} {[%emt
00:03:21]} Kg7 {[%clk 00:12:31]} {[%emt 00:00:06]} 45. Kg3 {[%clk 00:02:56]}
{[%emt 00:02:51]} Qd6 {[%clk 00:08:07]} {[%emt 00:04:54]} 46. Re4 {[%clk
00:00:39]} {[%emt 00:02:47]} Be6 {[%clk 00:05:32]} {[%emt 00:03:05]} 47. Kf2
{[%clk 00:00:35]} {[%emt 00:00:34]} Qd2+ {[%clk 00:05:32]} {[%emt 00:00:30]} 48.
Kg3 {[%clk 00:00:42]} {[%emt 00:00:23]} Qd1 {[%clk 00:02:24]} {[%emt 00:03:37]}
49. Kf2 {[%clk 00:00:47]} {[%emt 00:00:25]} Qd2+ {[%clk 00:01:28]} {[%emt
00:01:26]} 50. Kg3 {[%clk 00:01:04]} {[%emt 00:00:13]} g5 {[%clk 00:01:06]}
{[%emt 00:00:53]} 51. Nxe6+ {[%clk 00:00:52]} {[%emt 00:00:42]} fxe6 {[%clk
00:01:34]} {[%emt 00:00:03]} 52. Qg4 {[%clk 00:00:48]} {[%emt 00:00:32]} Qd6+
{[%clk 00:01:09]} {[%emt 00:00:56]} 53. Kg2 {[%clk 00:01:08]} {[%emt 00:00:10]}
Qd2+ {[%clk 00:00:51]} {[%emt 00:00:48]} 54. Kf1 {[%clk 00:00:41]} {[%emt
00:00:56]} Qd5 {[%clk 00:00:49]} {[%emt 00:00:33]} 55. h4 {[%clk 00:00:36]}
{[%emt 00:00:34]} Rf5 {[%clk 00:00:53]} {[%emt 00:00:26]} 56. Ke2 {[%clk
00:00:39]} {[%emt 00:00:27]} Kf6 {[%clk 00:00:41]} {[%emt 00:00:42]} 57. h5
{[%clk 00:00:40]} {[%emt 00:00:29]} Qd3+ {[%clk 00:00:57]} {[%emt 00:00:15]} 58.
Kf2 {[%clk 00:01:06]} {[%emt 00:00:05]} Qd2+ {[%clk 00:00:42]} {[%emt
00:00:44]} 59. Kg3 {[%clk 00:01:16]} {[%emt 00:00:19]} Qc1 {[%clk 00:00:54]}
{[%emt 00:00:18]} 60. Re2 {[%clk 00:00:47]} {[%emt 00:00:59]} Qg1+ {[%clk
00:01:09]} {[%emt 00:00:16]} 61. Rg2 {[%clk 00:00:36]} {[%emt 00:00:41]} Qe1+
{[%clk 00:01:05]} {[%emt 00:00:33]} 62. Rf2 {[%emt 00:00:32]} Rf4 {[%clk
00:01:10]} {[%emt 00:00:23]} 63. Qh3 {[%clk 00:00:48]} {[%emt 00:00:18]} Rh4
{[%clk 00:01:34]} {[%emt 00:00:08]} 64. Qf1 {[%clk 00:01:08]} {[%emt 00:00:09]}
Qe5+ {[%clk 00:00:47]} {[%emt 00:01:17]} 65. f4 {[%clk 00:01:30]} {[%emt
00:00:08]} gxf4+ {[%clk 00:01:08]} {[%emt 00:00:09]} 66. Rxf4+ {[%clk
00:00:31]} {[%emt 00:01:30]} Kg5 {[%clk 00:01:31]} {[%emt 00:00:06]} 0-1

[Event "Schack-SM 2024: Mastarklassen-elit"]
[Site "Fortnox Arena, Hejaregatan 5, Vaxjo, Sweden"]
[Date "2024.07.04"]
[Round "6.3"]
[White "Crevatin, Leo"]
[Black "Olsson, William"]
[Result "1/2-1/2"]
[TimeControl "90 minutes for 40 moves + 30 minutes for the rest of the game + 30 seconds per move from move one."]
[WhiteTitle "FM"]
[BlackTitle "IM"]
[WhiteElo "2235"]
[BlackElo "2363"]

1. d4 {[%clk 01:29:45]} {[%emt 00:01:12]} d5 {[%clk 01:30:13]} {[%emt
00:00:42]} 2. c4 {[%clk 01:29:55]} {[%emt 00:00:28]} c6 {[%clk 01:30:39]}
{[%emt 00:00:04]} 3. Nf3 {[%clk 01:29:51]} {[%emt 00:00:33]} Nf6 {[%clk
01:29:09]} {[%emt 00:02:00]} 4. g3 {[%clk 01:29:22]} {[%emt 00:00:59]} Bg4
{[%clk 01:26:24]} {[%emt 00:03:15]} 5. Ne5 {[%clk 01:25:53]} {[%emt 00:03:59]}
Bf5 {[%clk 01:25:07]} {[%emt 00:01:46]} 6. Nc3 {[%clk 01:20:56]} {[%emt
00:05:27]} e6 {[%clk 01:24:55]} {[%emt 00:00:42]} 7. Bg2 {[%clk 01:15:37]}
{[%emt 00:05:49]} Nbd7 {[%clk 01:23:30]} {[%emt 00:01:55]} 8. Nxd7 {[%clk
01:10:51]} {[%emt 00:05:17]} Qxd7 {[%clk 01:22:08]} {[%emt 00:01:51]} 9. O-O
{[%clk 01:08:26]} {[%emt 00:02:55]} Be7 {[%clk 01:17:36]} {[%emt 00:05:01]} 10.
b3 {[%clk 01:05:07]} {[%emt 00:03:49]} O-O {[%clk 01:12:16]} {[%emt 00:05:51]}
11. Bb2 {[%clk 01:02:23]} {[%emt 00:03:15]} b5 {[%clk 01:10:01]} {[%emt
00:02:45]} 12. c5 {[%clk 00:44:01]} {[%emt 00:18:52]} a5 {[%clk 01:06:03]}
{[%emt 00:04:29]} 13. Rc1 {[%clk 00:39:25]} {[%emt 00:05:05]} Rad8 {[%clk
01:02:31]} {[%emt 00:04:03]} 14. f3 {[%clk 00:37:46]} {[%emt 00:02:10]} Bg6
{[%clk 01:02:17]} {[%emt 00:00:43]} 15. e3 {[%clk 00:36:59]} {[%emt 00:01:17]}
Qc7 {[%clk 00:59:28]} {[%emt 00:03:19]} 16. a4 {[%clk 00:33:50]} {[%emt
00:03:39]} b4 {[%clk 00:58:01]} {[%emt 00:01:57]} 17. Ne2 {[%clk 00:34:09]}
{[%emt 00:00:12]} Nd7 {[%clk 00:55:35]} {[%emt 00:02:55]} 18. Nf4 {[%clk
00:32:58]} {[%emt 00:01:40]} e5 {[%clk 00:50:38]} {[%emt 00:05:27]} 19. Nxg6
{[%clk 00:31:21]} {[%emt 00:02:08]} hxg6 {[%clk 00:51:06]} {[%emt 00:00:02]} 20.
Bh3 {[%clk 00:29:54]} {[%emt 00:01:57]} f5 {[%clk 00:42:27]} {[%emt 00:09:08]}
21. Rc2 {[%clk 00:27:31]} {[%emt 00:02:53]} Bf6 {[%clk 00:40:07]} {[%emt
00:02:50]} 22. Re2 {[%clk 00:25:31]} {[%emt 00:02:30]} Rfe8 {[%clk 00:39:13]}
{[%emt 00:01:25]} 23. Rfe1 {[%clk 00:24:24]} {[%emt 00:01:39]} Nf8 {[%clk
00:35:25]} {[%emt 00:04:16]} 24. Bg2 {[%clk 00:20:43]} {[%emt 00:04:13]} Re7
{[%clk 00:32:32]} {[%emt 00:03:23]} 25. Qd2 {[%clk 00:16:06]} {[%emt 00:05:06]}
Ne6 {[%clk 00:30:13]} {[%emt 00:02:49]} 26. f4 {[%clk 00:15:06]} {[%emt
00:01:29]} exf4 {[%clk 00:29:23]} {[%emt 00:01:21]} 27. exf4 {[%clk 00:15:10]}
{[%emt 00:00:25]} Rde8 {[%emt 00:01:15]} 28. h4 {[%clk 00:14:30]} Kf7 {[%clk
00:27:10]} {[%emt 00:03:07]} 29. Kf1 {[%clk 00:13:52]} {[%emt 00:01:10]} Qc8
{[%clk 00:27:19]} {[%emt 00:00:21]} 30. Bf3 {[%clk 00:12:45]} {[%emt 00:01:36]}
Qa6 {[%clk 00:27:26]} {[%emt 00:00:24]} 31. Kg2 {[%clk 00:12:19]} {[%emt
00:00:55]} Qb7 {[%clk 00:27:09]} {[%emt 00:00:48]} 32. Kf1 {[%clk 00:11:27]}
{[%emt 00:01:21]} Qd7 {[%clk 00:27:10]} {[%emt 00:00:30]} 33. Kg2 {[%clk
00:11:14]} {[%emt 00:00:43]} Nc7 {[%clk 00:27:30]} {[%emt 00:00:10]} 34. Rxe7+
{[%clk 00:10:03]} {[%emt 00:01:40]} Rxe7 {[%clk 00:27:58]} {[%emt 00:00:02]} 35.
Rxe7+ {[%clk 00:09:26]} {[%emt 00:01:07]} Qxe7 {[%clk 00:28:26]} {[%emt
00:00:02]} 36. Kf2 {[%clk 00:08:34]} {[%emt 00:01:22]} Ne6 {[%clk 00:27:36]}
{[%emt 00:01:20]} 37. Kg2 {[%clk 00:07:23]} {[%emt 00:01:42]} Qd8 {[%clk
00:26:54]} {[%emt 00:01:11]} 38. Qf2 {[%clk 00:06:47]} {[%emt 00:01:07]} Qe7
{[%clk 00:25:31]} {[%emt 00:01:52]} 39. Qd2 {[%clk 00:05:30]} {[%emt 00:01:47]}
Ke8 {[%clk 00:25:46]} {[%emt 00:00:15]} 40. Qf2 {[%clk 00:03:20]} {[%emt
00:02:40]} Kd8 {[%clk 00:20:09]} {[%emt 00:06:07]} 41. Qd2 {[%clk 00:28:39]}
{[%emt 00:05:12]} Kc7 {[%clk 00:50:13]} {[%emt 00:00:26]} 42. Qf2 {[%clk
00:24:01]} {[%emt 00:05:08]} Kb7 {[%clk 00:50:11]} {[%emt 00:00:31]} 43. Qd2
{[%clk 00:24:13]} {[%emt 00:00:17]} Nc7 {[%clk 00:50:03]} {[%emt 00:00:38]} 44.
Kf2 {[%clk 00:22:52]} {[%emt 00:01:53]} Qe6 {[%clk 00:48:50]} {[%emt 00:01:43]}
45. Qd3 {[%clk 00:21:14]} {[%emt 00:02:06]} Qe7 {[%clk 00:47:25]} {[%emt
00:01:56]} 1/2-1/2